{"text_format":"1","workbook":"xlsx","n_sheets":4,"sheets":["Вихідні дані","Рахунок","Акт","Лист4"],"not_rendered":{"charts":0,"images":2,"macros":1,"external_links":0,"defined_names":6,"comments":1,"pivot_tables":0},"unopened":[],"bounds":{"document_bytes":16777216,"sheet_cells":100000,"rows_first":2000,"rows_last":500,"rows_between":2000,"halvings":0,"cell_chars":16384,"cell_head_chars":4096},"cells_cut":0,"cells_raw":0,"read":"whole","date_system":"1900"}

{"sheet":"Вихідні дані","index":0,"n_rows":14,"n_cols":7,"rows_kept":14,"cut":false,"hidden":false,"merged":[[1,6,1,7],[1,4,1,5],[3,0,3,1],[5,0,5,1],[13,0,13,1],[9,2,9,3],[7,0,7,1],[11,6,11,7],[7,2,7,7],[9,0,9,1],[11,0,11,1]]}
[]
[null,null,"Рахунок№:","07/06/12ВН","Дата завершення:",null,"2012-06-12"]
[]
["Вид звіту:",null,1]
[]
["Телеграма"]
[]
["Марка авто",null,"АЗЛК 21412"]
[]
["Державний номер",null,"АС 3544 АХ"]
[3]
["Замовник",null,3,null,null,"Інший замовник:",555]
[]
["Сумма",null,400]

{"sheet":"Рахунок","index":1,"n_rows":25,"n_cols":10,"rows_kept":25,"cut":false,"hidden":false,"merged":[[1,0,1,1],[6,0,6,1],[7,0,7,1],[6,2,6,7],[15,1,15,4],[15,7,15,8],[9,0,9,9],[10,0,10,9],[12,1,12,4],[12,7,12,8],[13,1,13,4],[13,7,13,8],[14,7,14,8],[14,1,14,4],[24,8,24,9],[16,1,16,4],[17,7,17,8],[18,7,18,8],[19,7,19,8],[16,7,16,8]]}
[]
["Постачальник"]
[]
[]
[]
[]
["Одержувач",null,"___________________________________________________________"]
["Платник",null,"той самий"]
[]
[{"$f":"CONCATENATE(\"Рахунок-фактура №\", 'Вихідні дані'!D2)","v":"Рахунок-фактура №07/06/12ВН"}]
[{"$f":"CONCATENATE(\"від \",TEXT('Вихідні дані'!G2, \"[$-FC22]d mmmm yyyy\"),\" року\")","v":"від 12 червня 2012 року"}]
[]
["№","Повна назва товару",null,null,null,"Од. Вим","К-ть","Ціна без ПДВ",null,"Сумма без ПДВ"]
[1,{"$f":"IF(Вибор=\"Повний\",\"Визначення вартості заподіяної майнової шкоди транспортного засобу після ДТП  (додатковий виїзд на СТО)\",IF(Вибор=\"Актуалізований\",\"Повторне визначення вартості заподіяної майнової шкоди транспортного засобу після ДТП у вигляді актуалізованого звіту (додатковий виїзд на СТО)\",\"Оформлення акту огляду заподіяної майнової шкоди транспортному засобу після ДТП\"))","v":"Визначення вартості заподіяної майнової шкоди транспортного засобу після ДТП  (додатковий виїзд на СТО)"},null,null,null,"шт.",1,{"$f":"'Вихідні дані'!C14","v":400},null,{"$f":"'Вихідні дані'!C14","v":400}]
[2,{"$f":"CONCATENATE('Вихідні дані'!C8,\" держ. номер \",'Вихідні дані'!C10,\" (\",IF(Заказчик=\"Написати іншого замовника\",'Вихідні дані'!G12,Заказчик),\")\")","v":"АЗЛК 21412 держ. номер АС 3544 АХ (555)"},null,null,null,"шт.",1,0,null,0]
[3,"Відправлення телеграми",null,null,null,"шт.",1,40,null,40]
[4,"Комісія згідно угоди",null,null,null,"шт.",1,{"$f":"H14*0.2","v":80},null,{"$f":"J14*0.2","v":80}]
[null,null,null,null,null,null,null,"Разом без ПДВ:",null,{"$f":"SUM(J14:J16)-J17","v":360}]
[null,null,null,null,null,null,null,"ПДВ:",null,0]
[null,null,null,null,null,null,null,"Всього з ПДВ:",null,{"$f":"SUM(J18:J19)","v":360}]
[]
[null,"Всього на суму:"]
[null,{"$f":"СУММ_ПРОП_ГРН(J20)","v":"Триста шістдесят гривень,  00 копійок"}]
[]
[null,"ПДВ: ",{"$f":"J19","v":0},null,null,null,"Виписав(ла):"]

{"sheet":"Акт","index":2,"n_rows":18,"n_cols":10,"rows_kept":18,"cut":false,"hidden":false,"merged":[[21,2,21,5],[23,2,23,5],[17,6,17,9],[17,2,17,5],[18,2,18,5],[19,2,19,5],[20,2,20,5],[22,2,22,5],[11,0,11,2],[12,0,12,9],[14,4,14,9],[14,1,14,2],[7,1,7,5],[8,1,8,5],[9,1,9,5],[10,1,10,5],[7,7,7,8],[8,7,8,8],[9,7,9,8],[10,7,10,8],[6,7,6,8],[6,1,6,5],[1,0,1,9],[2,0,2,9],[3,0,3,9],[4,0,5,9]]}
[]
[{"$f":"CONCATENATE(\"Акт № \",LEFT('Вихідні дані'!D2,5))","v":"Акт № 07/06"}]
["здачі-прийомки виконаних робіт (послуг)"]
[{"$f":"CONCATENATE(\"складений _____________________ \",YEAR('Вихідні дані'!G2),\" р.\")","v":"складений _____________________ 2012 р."}]
["                     Ми, що нижче підписалися, ВИКОНАВЕЦЬ -  з однієї сторони, та ЗАМОВНИК - ____________________________________, з другої сторони, склали цей акт про те, що наступні роботи (послуги):"]
[]
["№","Повна назва товару",null,null,null,null,"К-ть","Ціна без ПДВ",null,"Сумма без ПДВ"]
[1,{"$f":"Рахунок!B14","v":"Визначення вартості заподіяної майнової шкоди транспортного засобу після ДТП  (додатковий виїзд на СТО)"},null,null,null,null,1,{"$f":"Рахунок!H14","v":400},null,{"$f":"Рахунок!J14","v":400}]
[2,{"$f":"Рахунок!B15","v":"АЗЛК 21412 держ. номер АС 3544 АХ (555)"},null,null,null,null,1,{"$f":"Рахунок!H15","v":0},null,{"$f":"Рахунок!J15","v":0}]
[3,"Відправлення телеграми",null,null,null,null,1,40,null,40]
[4,"Комісія згідно угоди",null,null,null,null,1,{"$f":"Рахунок!H17","v":80},null,{"$f":"Рахунок!J17","v":80}]
["виконані у повному обсязі."]
[{"$f":"CONCATENATE(\"Ціна робіт (послуг) відповідно до документу (Рахунок № \",'Вихідні дані'!D2,\" від \",TEXT('Вихідні дані'!G2,\"dd.mm.yyyy\"),\" р.\",\") складає \",TEXT(Рахунок!J20,\"0,00\"),\" грн.;\",)","v":"Ціна робіт (послуг) відповідно до документу (Рахунок № 07/06/12ВН від 12.06.2012 р.) складає 360,00 грн.;"}]
[{"$f":"CONCATENATE(\"ПДВ \",TEXT(Рахунок!J19, \"0,00\"), \" грн.\")","v":"ПДВ 0,00 грн."}]
[null,{"$f":"Рахунок!J20","v":360},null,null,{"$f":"CONCATENATE(\"(\",СУММ_ПРОП_ГРН(B15),\")\")","v":"(Триста шістдесят гривень,  00 копійок)"}]
[]
["ВИКОНАВЕЦЬ",null,null,null,null,null,"ЗАМОВНИК"]
[null,null,null,null,null,null,"_______________________________________"]

{"sheet":"Лист4","index":3,"n_rows":12,"n_cols":3,"rows_kept":12,"cut":false,"hidden":false,"merged":[]}
["СК \"PZU Україна\"",{"$f":"INDEX($A$1:$A$3,'Вихідні дані'!$C$12)","v":"Написати іншого замовника"},"Добавил Jhonson"]
["СК \"Країна\""]
["Написати іншого замовника"]
[]
[]
["Повний"]
["Актуалізований"]
["Акт огляду"]
[]
["Так"]
[]
["Ні"]